Cogmind - Beta 15 @@@ ROGUE MODE // 2025.07.27 @ 17:18:45 Player: Nat Result: Destroyed by S-10 Pest with Light Assault Rifle Performance ------------- Evolutions (1) 500 Regions Visited (3) 600 Robots Destroyed (17) 85 Value Destroyed (440) 440 Prototype IDs (3) 60 Alien Tech Used (0) 0 Bonus (0) 0 TOTAL SCORE: 1685 Bonus ------- None Cogmind --------- Core Integrity 0/400 Matter 174/300 Energy 350/350 System Corruption 0% Temperature Cool (0) Movement Core (100) Ox1 Location -9/Materials Parts ------- > --- POWER (2) -------- (None) > --- PROPULSION (2) --- (None) > --- UTILITY (3) ------ High-capacity Battery Signal Interpreter > --- WEAPON (2) ------- (None) > --- INVENTORY (5) ---- Medium Laser Peak State ------------ > --- POWER ------------ (None) > --- PROPULSION ------- (None) > --- UTILITY ---------- High-capacity Battery Experimental Sensor Array Signal Interpreter > --- WEAPON ----------- Rocket Launcher Rocket Launcher > --- INVENTORY -------- Medium Laser [Rating: 15] Favorites ----------- Power Light Ion Engine Engine Light Ion Engine Power Core Light Nuclear Core Propulsion Wheel Wheel Wheel Utility High-capacity Battery Device Seismic Detector Storage High-capacity Battery Processor Signal Interpreter Weapon Medium Laser Energy Gun Medium Laser Launcher Grenade Launcher Build | -11 -10 -10 -9 ------- Run | Yrd Mat Min Mat Slots Evolved 2 | . . . 2 Power 1 | . . . 1 Propulsion . | . . . . Utility 1 | . . . 1 Weapon . | . . . . Parts Attached 17 | 6 3 1 7 Power 4 | 1 1 1 1 Engine 3 | 1 1 . 1 Core 1 | . . 1 . Reactor . | . . . . Propulsion 2 | 2 . . . Treads . | . . . . Leg . | . . . . Wheel 2 | 2 . . . Hover . | . . . . Flight . | . . . . Utility 4 | 1 1 . 2 Device 2 | 1 . . 1 Storage 1 | . 1 . . Processor 1 | . . . 1 Hackware . | . . . . Protection . | . . . . Artifact . | . . . . Weapon 7 | 2 1 . 4 Energy Gun 2 | 2 . . . Energy Cannon . | . . . . Ballistic Gun . | . . . . Ballistic Cannon . | . . . . Launcher 5 | . 1 . 4 Special Weapon . | . . . . Impact Weapon . | . . . . Slashing Weapon . | . . . . Piercing Weapon . | . . . . Special Melee Weapon . | . . . . Unidentified Prototypes . | . . . . Parts Lost 11 | . . . 11 Power 2 | . . . 2 Propulsion 2 | . . . 2 Utility 2 | . . . 2 Weapon 5 | . . . 5 Highest Loss Streak 5 | . . . 5 To Critical Strikes . | . . . . Average Backups 1 | . . 1 1 Power . | . . . . Propulsion . | . . . . Utility . | . . . . Weapon . | . . 1 1 Tool/Special . | . . . . Unused Backups . | . . . . Power . | . . . . Propulsion . | . . . . Utility . | . . . . Weapon . | . . . . Tool/Special . | . . . . Average Slot Usage (%) 76 | . 90 100 64 Engine 6 | . 14 11 1 Core 4 | . . 2 6 Wheel 17 | . 28 28 10 Device 10 | . 14 14 8 Storage 9 | . 4 14 11 Processor 6 | . . . 10 Energy Gun 10 | . 22 14 5 Launcher 9 | . 6 14 10 Peak Build Rating 15 | 6 7 10 15 Average Rating 8 | 3 6 8 10 On Entrance 5 | . 6 7 10 Naked Turns . | . . . . Heaviest Build 19 | 8 13 15 19 Greatest Support 20 | 20 20 20 20 Greatest Overweight (x) 4 | . . . 4 Average Overweight (x) . | . . . 1 Largest Inventory Capacity 5 | 5 5 5 5 Average Capacity 5 | 5 5 5 5 Most Carried 4 | 2 2 3 4 Average Carried 1 | . . 1 1 Final Capacity 5 | 5 5 5 5 Final Carried 2 | . 1 2 1 Class Distribution -------------------- 100% | Mutant Dominant Class ---------------- Mutant | -10/Materials Mutant | -10/Mines Mutant | -9/Materials Resources | -11 -10 -10 -9 ----------- Run | Yrd Mat Min Mat Matter Collected 360 | 260 . 27 73 Remotely . | . . . . Salvage Created 325 | 72 64 43 146 Parts 21 | 4 4 3 10 Haulers Intercepted . | . . . . Recyclers Shooed . | . . . . Parts Field Recycled . | . . . . Retrieved Matter . | . . . . Parts Self-Destructed . | . . . . Prevented . | . . . . Kills | -11 -10 -10 -9 ------- Run | Yrd Mat Min Mat Combat Hostiles Destroyed 12 | 1 3 2 6 Guns 3 | 1 2 . . AOE 9 | . 1 2 6 Classes Destroyed 8 | 2 1 1 4 Worker 2 | . . 2 . Tunneler 1 | 1 . . . Recycler 1 | . . . 1 Watcher 1 | . . . 1 Swarmer 4 | . 2 . 2 Grunt 6 | 1 1 2 2 Duelist 1 | . . . 1 Sentry 1 | . . . 1 Best Kill Streak 4 | 2 2 4 4 Combat Bots Only 3 | 1 2 2 3 Max Kills in Single Turn 2 | 2 1 2 2 Gunslinging . | . . . . Exploded 2 | . 1 1 2 Melee . | . . . . Uniques/NPCs Destroyed . | . . . . Combat | -11 -10 -10 -9 -------- Run | Yrd Mat Min Mat Hostile Shots Fired 100 | 6 8 10 76 Missed 20 | 1 4 2 13 Hits 80 | 5 4 8 63 Melee 1 | . . . 1 Projectile 79 | 5 4 8 62 Damage Taken 1098 | 56 80 107 855 Core 481 | 24 31 26 400 Absorbed by Shields . | . . . . Core Remaining (%) 78 | 90 . 67 . Volleys Fired 30 | 5 4 4 17 Largest 2 | 2 2 2 1 Hottest 100 | 100 100 80 50 Shots Fired 43 | 10 8 8 17 Gun 27 | 10 7 4 6 Cannon . | . . . . Launcher 16 | . 1 4 11 Special . | . . . . Kinetic . | . . . . Thermal 27 | 10 7 4 6 Explosive 16 | . 1 4 11 Electromagnetic . | . . . . Robot Hit Streak 6 | 5 6 2 5 Robot Miss Streak 4 | 1 2 4 3 Penetration Max . | . . . . Secondary Targets . | . . . . Shots Hit Robots 22 | 7 4 2 9 Core Hits 29 | 3 4 6 16 Critical Kills . | . . . . Critical Parts Destroyed . | . . . . Critical Strikes . | . . . . Melee Attacks . | . . . . Impact . | . . . . Slashing . | . . . . Piercing . | . . . . Sneak Attacks . | . . . . Combat Hostiles . | . . . . Follow-up Attacks . | . . . . Damage Inflicted 1304 | 101 78 332 793 Guns 189 | 101 38 13 37 Cannons . | . . . . Explosions 1115 | . 40 319 756 Melee . | . . . . Ramming . | . . . . Kinetic . | . . . . Thermal 356 | 101 38 13 204 Explosive 948 | . 40 319 589 Electromagnetic . | . . . . Impact . | . . . . Slashing . | . . . . Piercing . | . . . . Highest Corruption . | . . . . Average Corruption . | . . . . Corruption Purged . | . . . . Corruption Blocked . | . . . . Overload Shots . | . . . . Overflow Damage 187 | . . . 187 Projectiles . | . . . . Explosions 187 | . . . 187 Melee . | . . . . Knockbacks . | . . . . Impact . | . . . . Kinetic . | . . . . Secondary . | . . . . Self-Inflicted Damage 286 | . 7 . 279 Shots 8 | . 1 . 7 Rammed . | . . . . Targets Rammed . | . . . . Kicked . | . . . . Crushed . | . . . . Highest Temperature 225 | 225 117 126 37 Average Temperature 70 | 114 53 71 16 Received Heat Transfer 129 | 30 . 63 36 Siege Activations . | . . . . Martial Activations . | . . . . Shielding Activations . | . . . . Robots Disrupted . | . . . . Combat Hostiles . | . . . . Robots Corrupted . | . . . . Combat Hostiles . | . . . . Parts Fried . | . . . . Impact Corruptions . | . . . . Robots Melted . | . . . . Combat Hostiles . | . . . . Parts Melted 1 | 1 . . . Heat Transferred 655 | 296 111 37 211 Parts Sabotaged . | . . . . Parts Stolen . | . . . . Parts Stripped . | . . . . Power Chain Reactions . | . . . . Alert | -11 -10 -10 -9 ------- Run | Yrd Mat Min Mat Maximum Alert Level . | . . . . Low Security (%) 100 | 100 100 100 100 Level 1 . | . . . . Level 2 . | . . . . Level 3 . | . . . . Level 4 . | . . . . Level 5 . | . . . . High Security . | . . . . Max Security . | . . . . Peak Influence 111 | 15 40 77 111 Initial 22 | . 9 5 22 Average 27 | 3 14 25 38 Influence Increases 488 | 25 84 77 302 Destroy 0b10 Robot/C 240 | 20 60 40 120 Destroy 0b10 Robot/NC 25 | 5 . 10 10 Destroy Leader 52 | . 20 10 22 Successful Hack 7 | . . . 7 Disable Machine 90 | . . . 90 Destroy Structure 59 | . 4 17 38 Lose Combat Pursuer 15 | . . . 15 Influence Decreases 488 | 10 85 34 359 Entered New Map 50 | . 6 9 35 Time Decay 257 | 10 79 25 143 Lost Part 104 | . . . 104 Purge Threat 77 | . . . 77 Squads Dispatched 2 | . 1 . 1 Investigation 1 | . 1 . . Extermination . | . . . . Reinforcement 1 | . . . 1 Assault . | . . . . Garrison . | . . . . Intercept . | . . . . Searches Triggered . | . . . . Construction Impeded . | . . . . Haulers Reinforced . | . . . . Active Scanning Responses . | . . . . Cargo Convoy Interrupts . | . . . . Stealth | -11 -10 -10 -9 --------- Run | Yrd Mat Min Mat Distress Signals . | . . . . Communications Jammed . | . . . . Distress Signals . | . . . . Times Spotted 20 | 1 6 2 11 Peak Tracking Total 5 | 1 5 2 4 Tactical Retreats 1 | . . . 1 Traps | -11 -10 -10 -9 ------- Run | Yrd Mat Min Mat Traps Triggered 1 | . 1 . . Indirectly . | . . . . Trap Hack Attempts . | . . . . Triggered . | . . . . Disarmed . | . . . . Reprogrammed . | . . . . Reused . | . . . . Traps Extracted . | . . . . Installed . | . . . . Triggered . | . . . . Machines | -11 -10 -10 -9 ---------- Run | Yrd Mat Min Mat Machines Disabled 6 | . . . 6 Max in Single Turn 5 | . . . 5 Machines Repaired . | . . . . Machines Dismantled . | . . . . Machines Sabotaged . | . . . . Overloaded Fab Kills . | . . . . Hacking | -11 -10 -10 -9 --------- Run | Yrd Mat Min Mat Machines Accessed 3 | . 1 . 2 Terminals 2 | . 1 . 1 Fabricators . | . . . . Repair Stations . | . . . . Recycling Units . | . . . . Scanalyzers 1 | . . . 1 Garrison Access . | . . . . Total Hacks 9 | . 2 . 7 Successful 6 | . 1 . 5 Failed 3 | . 1 . 2 Catastrophic 1 | . 1 . . Database Lockouts . | . . . . Manual . | . . . . Terminals 7 | . 2 . 5 Fabricators . | . . . . Repair Stations . | . . . . Recycling Units . | . . . . Scanalyzers 2 | . . . 2 Garrison Access . | . . . . Terminal Hacks 5 | . 1 . 4 Prototype ID Bank 1 | . . . 1 Alert Level 1 | . . . 1 Unreport Threat 1 | . . . 1 Dispatch Records 1 | . . . 1 Recall Investigation 1 | . 1 . . Fabricator Hacks . | . . . . Repair Station Hacks . | . . . . Recycling Unit Hacks . | . . . . Scanalyzer 1 | . . . 1 Insert Component 1 | . . . 1 Garrison Access Hacks . | . . . . Unauthorized Hacks . | . . . . Terminals . | . . . . Fabricators . | . . . . Repair Stations . | . . . . Recycling Units . | . . . . Scanalyzers . | . . . . Garrison Access . | . . . . Data Cores Recovered . | . . . . Used . | . . . . Hacking Detections 2 | . 1 . 1 Full Trace Events 1 | . 1 . . Feedback Events . | . . . . Feedback Blocked . | . . . . Robot Schematics Acquired . | . . . . Robots Built . | . . . . Authchips . | . . . . Time . | . . . . Total Robot Build Rating . | . . . . Part Schematics Acquired . | . . . . Parts Built . | . . . . Authchips . | . . . . Time . | . . . . Total Part Build Rating . | . . . . Parts Repaired . | . . . . Time . | . . . . Parts Recycled . | . . . . Recycled Matter . | . . . . Retrieved Matter . | . . . . Retrieved Components . | . . . . Parts Scanalyzed . | . . . . Part Schematics Acquired . | . . . . Parts Damaged . | . . . . Bothacking | -11 -10 -10 -9 ------------ Run | Yrd Mat Min Mat Used RIF Installer . | . . . . Robots Hacked . | . . . . Non-combat . | . . . . Combat . | . . . . Robot Hacks Applied . | . . . . Relay Couplers Released . | . . . . Fabnet Peak Effective % . | . . . . Robots Rewired . | . . . . Allies Hacked . | . . . . Hacks Repelled . | . . . . Allies | -11 -10 -10 -9 -------- Run | Yrd Mat Min Mat Total Allies . | . . . . Largest Group . | . . . . Highest-Rated Group . | . . . . Highest-Rated Ally . | . . . . Total Orders . | . . . . Ally Attacks . | . . . . Total Damage . | . . . . Kills . | . . . . Allies Corrupted . | . . . . Allies Melted . | . . . . Intel | -11 -10 -10 -9 ------- Run | Yrd Mat Min Mat Active Infowar (turns) 640 | 2 202 85 351 Sensors 125 | . . . 125 Seismic 515 | 2 202 85 226 Robot Analysis Total . | . . . . Derelict Logs Recovered . | . . . . Drone Launches . | . . . . Drone Recoveries . | . . . . Exploration | -11 -10 -10 -9 ------------- Run | Yrd Mat Min Mat Turns Passed 823 | 74 202 85 462 Spaces Moved 583 | 67 183 86 247 Core 146 | 22 . . 124 Treads . | . . . . Legs . | . . . . Wheels 437 | 45 183 86 123 Hover . | . . . . Flight . | . . . . Fastest Speed 50 | 50 80 80 80 Average Speed 93 | 70 80 80 115 Slowest Speed 250 | 80 80 80 250 Overloaded Moves . | . . . . Propulsion Burnouts . | . . . . Robots Hopped . | . . . . Potential Cave-ins . | . . . . Cave-ins Triggered . | . . . . Exploration Rate (%) 18 | 6 25 24 19 Regions Visited 3 Branch Regions 1 Pre-discovered Areas . | . . . . Known Exits Taken . | . . . . Unknown Exits Taken 3 | 1 1 1 . Scrap Searched . | . . . . Spaces Dug . | . . . . Terrain Destroyed 73 | . 4 18 51 Melee . | . . . . Projectile . | . . . . AOE 73 | . 4 18 51 Terrain Rammed . | . . . . Walls Destroyed . | . . . . Machines Disabled . | . . . . Actions | -11 -10 -10 -9 --------- Run | Yrd Mat Min Mat Total 812 | 83 229 93 407 Wait 165 | . 36 . 129 Move 580 | 66 182 85 247 Hop . | . . . . Pick Up 17 | 6 3 2 6 Fast Attach . | . . . . Attach 14 | 6 1 . 7 Detach . | . . . . Swap 3 | . 2 1 . Drop 3 | . 1 1 1 Fire 30 | 5 4 4 17 Melee . | . . . . Ram . | . . . . Kick . | . . . . Crush . | . . . . Escape Stasis . | . . . . Rewire . | . . . . Trap . | . . . . Miscellaneous . | . . . . Route ------- -11/Scrapyard -10/Materials -10/Mines -9/Materials History --------- Turn | Location | Event 2 | -11/Scrapyard | Met Revision 17 45 | -11/Scrapyard | Discovered new exit (range 8) 75 | -11/Scrapyard | Entered Materials 267 | -10/Materials | Discovered new exit (range 12) 277 | -10/Materials | Entered Mines 289 | -10/Mines | Found a damaged Exp. Sensor Array with a note attached 290 | -10/Mines | Found Prototype Device 316 | -10/Mines | Build established: Mutant 342 | -10/Mines | Discovered new exit (range 15) 362 | -10/Mines | Entered Materials 362 | -9/Materials | Evolved 2 slots: Power x1, Utility x1 619 | -9/Materials | Lost 5 parts (2n1u2w) 679 | -9/Materials | Lost 3 parts (2p1w) 681 | -9/Materials | Identified Exp. Sensor Array 785 | -9/Materials | Core integrity fell below 50% 812 | -9/Materials | Core integrity fell below 20% 824 | -9/Materials | Destroyed by S-10 Pest with Light Assault Rifle Last Messages --------------- Purged threat record, alert level lowered. >>Enumerate(Squads) Retrieving dispatch records... Found 24 active squads: 9x Security 4x Surveillance 4x Patrol 6x Transport 1x Reinforcement >>Prototypes Downloading prototype IDs... Imp. Assault Rifle Imp. Medium Laser >>Alert(Check) Current Alert Level: Low Security M-13 Machinist fits Backup Power I on S-10 Pest. U-05 Engineer lays Concrete. U-05 Engineer builds a Door. Exp. Sensor Array destroyed. U-05 Engineer lays Concrete. Map ----- +----------------------------------------------------+ | ?????????????????????????????????????????????????? | | ?????????????????????????????????????????????????? | | ?????????????????????????????????????????????????? | | ?????????????????????????????????????????????????? | | ?????????????????????????????????????????????????? | | ?????????????????????????????????????????????????? | | ?????????????? ????????????????????????????????? | | ???????????? ????????????????????????????????? | | ???????????? ??????##########????????????????? | | ????????????? ??????# #????????????????? | | ???????????? ##????# T """ #????????????????? | | ????????????? #????# """ #????????????????? | | ?????????? "Y" #????# """ #????????????????? | | ??????????? """ #????# #????????????????? | | ???????????? #????# """ #????????????????? | | ?????????????? #????# """ #????????????????? | | ?????############ ####?# """ #????????????????? | | ?????# ### # #?# #????????????????? | | ?????# """ # % #######+####????????????????? | | ?????# """ # #######????????????? | | ?????# """ / + ???????????? | | ?????#] # ####### ???????? | | ?????# "" # ###a### #??????????????????? | | ?????# S"" ## ###ss # #??????????????????? | | ?????# "" ## #?# # #??????????????????? | | ?????# ## #?# @# #??????????????????? | | ?##### ######### #?# # #??????????????????? | | ?# # #?# # #??????????????????? | | ?# """ # #?# # #??????????????????? | | ?#] """ # #?# # #??????????????????? | | ?# """ # #?# # #??????????????????? | | ?# ### # #??????????????????? | | ?# ####### #??????????????????? | | ?# ## # ##???# #??????????????????? | | ?## # #???# #??????????????????? | | ??## ##???? ???????????????????? | | ???## """ #???? ???????????????????? | | ????##" ##??????????????????????????? | | ?????#" # ###??????????????????????????? | | ?????###" ###????????????????????????????? | | ??????#" #??????????????????????????????? | | ??????#"" %%% #??????????????????????????????? | | ??????#"T """ #??????????????????????????????? | | ??????#"" """ #??????????????????????????????? | | ??????#"" #??????????????????????????????? | | ??????### #??????????????????????????????? | | ????????# """ #??????????????????????????????? | | ######### """ #######????????????????????????? | | # """ ???????????????????????? | | """ """ # ???????????????????????? | +----------------------------------------------------+ Best States ------------- Heat Dissipation 28 Energy Generation 19 Energy Capacity 435 Matter Stores 300 Matter Capacity 300 Sight Range 16 Robot Scan Range 20 Terrain Scan Density 10 Evasion (%) 50 Item Schematics ----------------- None Robot Schematics ------------------ None Fabricated ------------ Nothing Repaired ---------- Nothing Alien Tech Used ----------------- None Achievements -------------- Everything Is Under Control Safety First Challenges ------------ None Game ------ Seed ThermalCryofiberStorm Manual? 0 Play Time 00:23:27 Cumulative 1.0 hours Start 2025.07.27 @ 16:21:35 End 2025.07.27 @ 17:18:45 Sessions 1 Manual Loads 0 Difficulty Rogue Special Mode None Game No. 2 Rogue 2 Adventurer 0 Explorer 0 Win Type - Total 0 Types 0/0/0/0/0/0/0/0/0/0 Lore% 0 Gallery% 2 Achievement% 3 Wizard Run 0 Options --------- Layout 1 ASCII 0 Keyboard 0 Movement Mouse Keybinds 0 Fullscreen 1 Font 24/Smallcaps Map View 50x40 Zoom Use 0% Tactical HUD 0 Map Filters NONE Filters NONE Steam 1 RUN: a54340d8-61ba-4dd9-8226-5da69b7df9c2